Workbook

Sheet Sheet1
A1: DIRECCION DE LOGISTICA
A2: GERENCIA DE ALMACEN
A4: Relación de inventario a MARZO 31 2025
A7: Material | B7: Texto breve de material | C7: Centro | D7: Central | E7: Unidad medida base | F7: Cantidad | G7: Precio Unidad | H7: Valor libre util.
A8: 10001497 | B8: CABLE DE 24 HILOS X 1.50MM TRANZADO | C8: 2008 | D8: HATILLO | E8: UN | F8: 1 | G8: =+H8/F8 -> 125 | H8: 125.00
A9: 10001502 | B9: FUSIBLE 500V 10AMP | C9: 2005 | D9: MONCION | E9: UN | F9: 9 | G9: =+H9/F9 -> 0 | H9: 0.00
A10: 10001503 | B10: FUSIBLE 500V 63AMP SJSB 50X20MM | C10: 2008 | D10: HATILLO | E10: UN | F10: 20 | G10: =+H10/F10 -> 63.15 | H10: 1,263.00
A11: 10001505 | B11: FUSIBLE 500V 80AMP NHOO ETERM | C11: 2008 | D11: HATILLO | E11: UN | F11: 3 | G11: =+H11/F11 -> 204.8 | H11: 614.40
A12: 10001507 | B12: FUSIBLE CARTUCHO 500V 4A C63211 14X51 CM | C12: 2021 | D12: SABANETA | E12: UN | F12: 61 | G12: =+H12/F12 -> 0 | H12: 0.00
A13: 10001509 | B13: FUSIBLE 500V 400AMP TIPO A50 P400-4 | C13: 2008 | D13: HATILLO | E13: UN | F13: 18 | G13: =+H13/F13 -> 29.9 | H13: 538.20
A14: 10001512 | B14: VALVULA CHECK EN BRONCE 2 PLG | C14: 2015 | D14: JIGüEY | E14: UN | F14: 2 | G14: =+H14/F14 -> 0 | H14: 0.00
A15: 10001515 | B15: JUNTA DE CARBON | C15: 2008 | D15: HATILLO | E15: UN | F15: 36 | G15: =+H15/F15 -> 0 | H15: 0.00
A16: 10001525 | B16: JUNTA NO. 2152-850-2 | C16: 2008 | D16: HATILLO | E16: UN | F16: 6 | G16: =+H16/F16 -> 140.15 | H16: 840.90
A17: 10001530 | B17: JUNTA 2152-038-889 | C17: 2008 | D17: HATILLO | E17: UN | F17: 3 | G17: =+H17/F17 -> 65.15 | H17: 195.45
A18: 10001531 | B18: JUNTA DE CORCHO REF. 1638015-3 | C18: 2008 | D18: HATILLO | E18: UN | F18: 3 | G18: =+H18/F18 -> 137.09 | H18: 411.27
A19: 10001533 | B19: BIELETA PARA LA TURBINA REF.320 | C19: 2008 | D19: HATILLO | E19: UN | F19: 35 | G19: =+H19/F19 -> 32.15 | H19: 1,125.25
A20: 10001534 | B20: RESORTES P/REGULADOR TURBINA | C20: 2028 | D20: BRAZO DERECHO | E20: UN | F20: 3 | G20: =+H20/F20 -> 1 | H20: 3.00
A21: 10001542 | B21: FUSIBLE TIPO CARTUCHO 60AMP-250V | C21: 2010 | D21: JIMENOA | E21: UN | F21: 6 | G21: =+H21/F21 -> 0.01 | H21: 0.06
A22: 10001565 | B22: CORREA TIPO 8L4526 PARA PLANTA DIESEL | C22: 2008 | D22: HATILLO | E22: UN | F22: 7 | G22: =+H22/F22 -> 400 | H22: 2,800.00
A23: 10001569 | B23: FUSIBLE DE 30 AMP. A 600 VOLT. | C23: 2008 | D23: HATILLO | E23: UN | F23: 8 | G23: =+H23/F23 -> 30 | H23: 240.00
A24: 10001570 | B24: TUBO FLUORESCENTE DE 40W 120V | C24: 2015 | D24: JIGüEY | E24: UN | F24: 64 | G24: =+H24/F24 -> 0 | H24: 0.00
A25: 10001570 | B25: TUBO FLUORESCENTE DE 40W 120V | C25: 2020 | D25: SABANA YEGUA | E25: UN | F25: 77 | G25: =+H25/F25 -> 0 | H25: 0.00
A26: 10001572 | B26: FILTRO DE ACEITE P/ SISTEMA REGULACION | C26: 2008 | D26: HATILLO | E26: UN | F26: 86 | G26: =+H26/F26 -> 0 | H26: 0.00
A27: 10001572 | B27: FILTRO DE ACEITE P/ SISTEMA REGULACION | C27: 2021 | D27: SABANETA | E27: UN | F27: 3 | G27: =+H27/F27 -> 0.01 | H27: 0.03
A28: 10001573 | B28: PINTURA VERDE TILO | C28: 2024 | D28: MAGUEYAL | E28: UN | F28: 4 | G28: =+H28/F28 -> 0.01 | H28: 0.04
A29: 10001574 | B29: VALVULA DE SEGURIDAD 1 1/8 PLG | C29: 2008 | D29: HATILLO | E29: UN | F29: 1 | G29: =+H29/F29 -> 0 | H29: 0.00
A30: 10001575 | B30: CURVA MT DE 1/2" | C30: 2017 | D30: VALDESIA | E30: UN | F30: 4 | G30: =+H30/F30 -> 90 | H30: 360.00
A31: 10001582 | B31: MASCARILLAS PARA GASES CON DOBLE FILTRO | C31: 2000 | D31: SUMINISTRO HIDRO | E31: UN | F31: 2 | G31: =+H31/F31 -> 0.01 | H31: 0.02
A32: 10001582 | B32: MASCARILLAS PARA GASES CON DOBLE FILTRO | C32: 2004 | D32: BAIGUAQUE | E32: UN | F32: 1 | G32: =+H32/F32 -> 0.01 | H32: 0.01
A33: 10001582 | B33: MASCARILLAS PARA GASES CON DOBLE FILTRO | C33: 2015 | D33: JIGüEY | E33: UN | F33: 2 | G33: =+H33/F33 -> 0.01 | H33: 0.02
A34: 10001582 | B34: MASCARILLAS PARA GASES CON DOBLE FILTRO | C34: 2022 | D34: DOMINGO RODRIGUEZ | E34: UN | F34: 2 | G34: =+H34/F34 -> 0.01 | H34: 0.02
A35: 10001582 | B35: MASCARILLAS PARA GASES CON DOBLE FILTRO | C35: 2024 | D35: MAGUEYAL | E35: UN | F35: 7 | G35: =+H35/F35 -> 0.01 | H35: 0.07
A36: 10001588 | B36: ACEITE 68 | C36: 2003 | D36: ANGOSTURA | E36: UN | F36: 110 | G36: =+H36/F36 -> 0 | H36: 0.00
A37: 10001589 | B37: GUANTES PARA OBREROS CORTO | C37: 2000 | D37: SUMINISTRO HIDRO | E37: UN | F37: 60 | G37: =+H37/F37 -> 173.46 | H37: 10,407.60
A38: 10001589 | B38: GUANTES PARA OBREROS CORTO | C38: 2004 | D38: BAIGUAQUE | E38: UN | F38: 10 | G38: =+H38/F38 -> 0 | H38: 0.00
A39: 10001589 | B39: GUANTES PARA OBREROS CORTO | C39: 2005 | D39: MONCION | E39: UN | F39: 2 | G39: =+H39/F39 -> 0 | H39: 0.00
A40: 10001591 | B40: CINTURONES D/SEGURIDAD | C40: 2008 | D40: HATILLO | E40: UN | F40: 2 | G40: =+H40/F40 -> 0 | H40: 0.00
A41: 10001598 | B41: CODO 1 1/4 X 90 HIERRO NEGRO #150 | C41: 2001 | D41: C.CONTROL HIDRO | E41: UN | F41: 1 | G41: =+H41/F41 -> 0 | H41: 0.00
A42: 10001606 | B42: TUBO HIERRO NEGRO 2" | C42: 2022 | D42: DOMINGO RODRIGUEZ | E42: UN | F42: 36 | G42: =+H42/F42 -> 0.01 | H42: 0.36
A43: 10001610 | B43: CORREA 9325- 12.5 x 13MM x 835MM | C43: 2008 | D43: HATILLO | E43: UN | F43: 1 | G43: =+H43/F43 -> 1 | H43: 1.00
A44: 10001612 | B44: TEE DE HIERRO DE 1" | C44: 2021 | D44: SABANETA | E44: UN | F44: 4 | G44: =+H44/F44 -> 0 | H44: 0.00
A45: 10001613 | B45: TEE DE HIERRO DE 3/4 PLG | C45: 2008 | D45: HATILLO | E45: UN | F45: 14 | G45: =+H45/F45 -> 1 | H45: 14.00
A46: 10001613 | B46: TEE DE HIERRO DE 3/4 PLG | C46: 2024 | D46: MAGUEYAL | E46: UN | F46: 18 | G46: =+H46/F46 -> 0 | H46: 0.00
A47: 10001614 | B47: "TEE DE HIERRO DE 1/2""" | C47: 2005 | D47: MONCION | E47: UN | F47: 3 | G47: =+H47/F47 -> 0 | H47: 0.00
A48: 10001615 | B48: "TEE DE HIERRO DE 1 1/2""" | C48: 2025 | D48: LAS DAMAS | E48: UN | F48: 1 | G48: =+H48/F48 -> 0 | H48: 0.00
A49: 10001617 | B49: CURVA HG 3/4" | C49: 2027 | D49: PALOMINO | E49: UN | F49: 5 | G49: =+H49/F49 -> 1 | H49: 5.00
A50: 10001657 | B50: UNION UNIVERSAL 1'' GALVANIZADO | C50: 2020 | D50: SABANA YEGUA | E50: UN | F50: 7 | G50: =+H50/F50 -> 1 | H50: 7.00
A51: 10001658 | B51: UNION UNIVERSAL HG 1 1/2" | C51: 2020 | D51: SABANA YEGUA | E51: UN | F51: 5 | G51: =+H51/F51 -> 1 | H51: 5.00
A52: 10001658 | B52: UNION UNIVERSAL HG 1 1/2" | C52: 2021 | D52: SABANETA | E52: UN | F52: 9 | G52: =+H52/F52 -> 0 | H52: 0.00
A53: 10001658 | B53: UNION UNIVERSAL HG 1 1/2" | C53: 2024 | D53: MAGUEYAL | E53: UN | F53: 1 | G53: =+H53/F53 -> 0.01 | H53: 0.01
A54: 10001659 | B54: UNION UNIVERSAL HG 1 1/4'' | C54: 2005 | D54: MONCION | E54: UN | F54: 1 | G54: =+H54/F54 -> 0 | H54: 0.00
A55: 10001659 | B55: UNION UNIVERSAL HG 1 1/4'' | C55: 2007 | D55: RINCON | E55: UN | F55: 12 | G55: =+H55/F55 -> 0 | H55: 0.00
A56: 10001659 | B56: UNION UNIVERSAL HG 1 1/4'' | C56: 2020 | D56: SABANA YEGUA | E56: UN | F56: 7 | G56: =+H56/F56 -> 1 | H56: 7.00
A57: 10001659 | B57: UNION UNIVERSAL HG 1 1/4'' | C57: 2021 | D57: SABANETA | E57: UN | F57: 1 | G57: =+H57/F57 -> 0 | H57: 0.00
A58: 10001660 | B58: UNION UNIVERSAL D/3/4'' ACERO (NEGRO) | C58: 2015 | D58: JIGüEY | E58: UN | F58: 20 | G58: =+H58/F58 -> 0.01 | H58: 0.20
A59: 10001663 | B59: NIPLE HG 1 PLG | C59: 2010 | D59: JIMENOA | E59: UN | F59: 1 | G59: =+H59/F59 -> 0.01 | H59: 0.01
A60: 10001669 | B60: RELE D/CONTROL A 208V AC 60HZ 20<2A | C60: 2009 | D60: RIO BLANCO | E60: UN | F60: 6 | G60: =+H60/F60 -> 1 | H60: 6.00
A61: 10001671 | B61: AISLADORES BOUELITAS CIRCULARES | C61: 2008 | D61: HATILLO | E61: UN | F61: 6 | G61: =+H61/F61 -> 1 | H61: 6.00
A62: 10001682 | B62: CODO PVC SCH-40 1/2 PLG | C62: 2008 | D62: HATILLO | E62: UN | F62: 17 | G62: =+H62/F62 -> 1 | H62: 17.00
A63: 10001682 | B63: CODO PVC SCH-40 1/2 PLG | C63: 2010 | D63: JIMENOA | E63: UN | F63: 2 | G63: =+H63/F63 -> 0.01 | H63: 0.02
A64: 10001682 | B64: CODO PVC SCH-40 1/2 PLG | C64: 2023 | D64: LOS TOROS | E64: UN | F64: 4 | G64: =+H64/F64 -> 0 | H64: 0.00
A65: 10001683 | B65: CODO DE 3/4 PLG A 45º | C65: 2010 | D65: JIMENOA | E65: UN | F65: 1 | G65: =+H65/F65 -> 1 | H65: 1.00
A66: 10001684 | B66: FILTRO DE GASOLINA FRAM P1104 | C66: 2008 | D66: HATILLO | E66: UN | F66: 1 | G66: =+H66/F66 -> 1 | H66: 1.00
A67: 10001688 | B67: VALVULA DE GALLETA 2 PLG/150W | C67: 2005 | D67: MONCION | E67: UN | F67: 1 | G67: =+H67/F67 -> 0 | H67: 0.00
A68: 10001688 | B68: VALVULA DE GALLETA 2 PLG/150W | C68: 2011 | D68: PINALITO | E68: UN | F68: 1 | G68: =+H68/F68 -> 0 | H68: 0.00
A69: 10001690 | B69: NIPLE ACERO INOXI 1/2" | C69: 2009 | D69: RIO BLANCO | E69: UN | F69: 2 | G69: =+H69/F69 -> 0 | H69: 0.00
A70: 10001690 | B70: NIPLE ACERO INOXI 1/2" | C70: 2025 | D70: LAS DAMAS | E70: UN | F70: 1 | G70: =+H70/F70 -> 0 | H70: 0.00
A71: 10001692 | B71: CONTACTOR 110V/60HZ | C71: 2008 | D71: HATILLO | E71: UN | F71: 1 | G71: =+H71/F71 -> 0 | H71: 0.00
A72: 10001694 | B72: ESCOBILLA PARA GENERADOR 32X25X50 | C72: 2008 | D72: HATILLO | E72: UN | F72: 23 | G72: =+H72/F72 -> 12024.15 | H72: 276,555.45
A73: 10001704 | B73: CASQUILLO DE PARA BIELETA | C73: 2008 | D73: HATILLO | E73: UN | F73: 69 | G73: =+H73/F73 -> 450 | H73: 31,050.00
A74: 10001707 | B74: CASQUILLO DE BRONCE DE 100X86X84 PARTE | C74: 2008 | D74: HATILLO | E74: UN | F74: 38 | G74: =+H74/F74 -> 42.15 | H74: 1,601.70
A75: 10001708 | B75: CASQUILLO DE BRONCE DE 100X86X70 PART | C75: 2008 | D75: HATILLO | E75: UN | F75: 40 | G75: =+H75/F75 -> 53.94 | H75: 2,157.60
A76: 10001709 | B76: COJINETE GUIA DE LA TURBINA | C76: 2015 | D76: JIGüEY | E76: UN | F76: 4 | G76: =+H76/F76 -> 0 | H76: 0.00
A77: 10001711 | B77: MANOMETRO DEPRESIÓN DE 0 A 10 BAR | C77: 2016 | D77: AGUACATE | E77: UN | F77: 1 | G77: =+H77/F77 -> 0 | H77: 0.00
A78: 10001711 | B78: MANOMETRO DEPRESIÓN DE 0 A 10 BAR | C78: 2027 | D78: PALOMINO | E78: UN | F78: 1 | G78: =+H78/F78 -> 1 | H78: 1.00
A79: 10001719 | B79: CONTACTO NO.2658-982-B | C79: 2008 | D79: HATILLO | E79: UN | F79: 18 | G79: =+H79/F79 -> 63.15 | H79: 1,136.70
A80: 10001726 | B80: PIÑON 400 MM P/GRUA 25 TONELADA | C80: 2008 | D80: HATILLO | E80: UN | F80: 2 | G80: =+H80/F80 -> 10800 | H80: 21,600.00
A81: 10001741 | B81: RODAMIENTO NO.6308 | C81: 2025 | D81: LAS DAMAS | E81: UN | F81: 1 | G81: =+H81/F81 -> 0 | H81: 0.00
A82: 10001743 | B82: RODAMIENTO NO.6201 | C82: 2005 | D82: MONCION | E82: UN | F82: 1 | G82: =+H82/F82 -> 0 | H82: 0.00
A83: 10001745 | B83: UNION EN TEE ACERO INOXI 3/4" | C83: 2015 | D83: JIGüEY | E83: UN | F83: 13 | G83: =+H83/F83 -> 0 | H83: 0.00
A84: 10001746 | B84: TEE PVC 3/4 PLG | C84: 2008 | D84: HATILLO | E84: UN | F84: 4 | G84: =+H84/F84 -> 48.95 | H84: 195.80
A85: 10001746 | B85: TEE PVC 3/4 PLG | C85: 2010 | D85: JIMENOA | E85: UN | F85: 3 | G85: =+H85/F85 -> 0 | H85: 0.00
A86: 10001747 | B86: JUNTA DE GOMA P/BRIDA 6 PLG | C86: 2007 | D86: RINCON | E86: UN | F86: 5 | G86: =+H86/F86 -> 0 | H86: 0.00
A87: 10001747 | B87: JUNTA DE GOMA P/BRIDA 6 PLG | C87: 2021 | D87: SABANETA | E87: UN | F87: 2 | G87: =+H87/F87 -> 0 | H87: 0.00
A88: 10001747 | B88: JUNTA DE GOMA P/BRIDA 6 PLG | C88: 2022 | D88: DOMINGO RODRIGUEZ | E88: UN | F88: 1 | G88: =+H88/F88 -> 0 | H88: 0.00
A89: 10001750 | B89: TERMINAL DE OJO AMARILLO 12-10 | C89: 2015 | D89: JIGüEY | E89: UN | F89: 15 | G89: =+H89/F89 -> 0 | H89: 0.00
A90: 10001754 | B90: ANTORCHA P/EQUIPO DE ACETILENO | C90: 2011 | D90: PINALITO | E90: UN | F90: 1 | G90: =+H90/F90 -> 0 | H90: 0.00
A91: 10001756 | B91: DETECTOR DE FLUJO DE AGUA SCAI | C91: 2007 | D91: RINCON | E91: UN | F91: 1 | G91: =+H91/F91 -> 0 | H91: 0.00
A92: 10001764 | B92: CONTACTO 3TA22 | C92: 2008 | D92: HATILLO | E92: UN | F92: 2 | G92: =+H92/F92 -> 398.15 | H92: 796.30
A93: 10001768 | B93: CONTACTOR DE EXITACION (31G) | C93: 2007 | D93: RINCON | E93: UN | F93: 2 | G93: =+H93/F93 -> 0 | H93: 0.00
A94: 10001795 | B94: VALVULA DE GALLETA 3/4 | C94: 2003 | D94: ANGOSTURA | E94: UN | F94: 1 | G94: =+H94/F94 -> 0 | H94: 0.00
A95: 10001795 | B95: VALVULA DE GALLETA 3/4 | C95: 2005 | D95: MONCION | E95: UN | F95: 1 | G95: =+H95/F95 -> 0 | H95: 0.00
A96: 10001797 | B96: FILTRO P/ TRAMPA DE AGUA MICO | C96: 2015 | D96: JIGüEY | E96: UN | F96: 1 | G96: =+H96/F96 -> 0.01 | H96: 0.01
A97: 10001799 | B97: "VALVULA DE 3""" | C97: 2005 | D97: MONCION | E97: UN | F97: 1 | G97: =+H97/F97 -> 0 | H97: 0.00
A98: 10001804 | B98: TERMINAL P/BARRA REGULADOR DE LA TURBINA | C98: 2023 | D98: LOS TOROS | E98: UN | F98: 2 | G98: =+H98/F98 -> 0 | H98: 0.00
A99: 10001804 | B99: TERMINAL P/BARRA REGULADOR DE LA TURBINA | C99: 2028 | D99: BRAZO DERECHO | E99: UN | F99: 12 | G99: =+H99/F99 -> 0 | H99: 0.00
A100: 10001806 | B100: SEÑALIZADOR DE ENCENDIDO L001 (PILOTO) | C100: 2027 | D100: PALOMINO | E100: UN | F100: 3 | G100: =+H100/F100 -> 0 | H100: 0.00
A101: 10001808 | B101: VOLTIMETRO 0-15KV 12.5/0.12KV ESFERA 3 | C101: 2007 | D101: RINCON | E101: UN | F101: 1 | G101: =+H101/F101 -> 0 | H101: 0.00
A102: 10001809 | B102: VOLTIMETRO DE 0-600V | C102: 2003 | D102: ANGOSTURA | E102: UN | F102: 1 | G102: =+H102/F102 -> 0 | H102: 0.00
A103: 10001812 | B103: CONTROL DE VOLTAJE 125VDC - 500VDC | C103: 2025 | D103: LAS DAMAS | E103: UN | F103: 1 | G103: =+H103/F103 -> 0 | H103: 0.00
A104: 10001821 | B104: BLOQUE RECTIFICADOR CEBADO KGBK | C104: 2008 | D104: HATILLO | E104: UN | F104: 1 | G104: =+H104/F104 -> 1 | H104: 1.00
A105: 10001822 | B105: RELE ARTECHE RF4D1 125V CC+2 BASE | C105: 2008 | D105: HATILLO | E105: UN | F105: 44 | G105: =+H105/F105 -> 1 | H105: 44.00
A106: 10001822 | B106: RELE ARTECHE RF4D1 125V CC+2 BASE | C106: 2020 | D106: SABANA YEGUA | E106: UN | F106: 1 | G106: =+H106/F106 -> 0 | H106: 0.00
A107: 10001826 | B107: BOBINA 3RTI944-5BG41 | C107: 2002 | D107: TAVERA | E107: UN | F107: 14 | G107: =+H107/F107 -> 0.01 | H107: 0.14
A108: 10001828 | B108: RELE ARTECHE TF2 | C108: 2007 | D108: RINCON | E108: UN | F108: 2 | G108: =+H108/F108 -> 0 | H108: 0.00
A109: 10001828 | B109: RELE ARTECHE TF2 | C109: 2008 | D109: HATILLO | E109: UN | F109: 1 | G109: =+H109/F109 -> 1 | H109: 1.00
A110: 10001848 | B110: ADAPTADOR MACHO PVC 4" | C110: 2004 | D110: BAIGUAQUE | E110: UN | F110: 445 | G110: =+H110/F110 -> 0 | H110: 0.00
A111: 10001848 | B111: ADAPTADOR MACHO PVC 4" | C111: 2008 | D111: HATILLO | E111: UN | F111: 1 | G111: =+H111/F111 -> 1 | H111: 1.00
A112: 10001848 | B112: ADAPTADOR MACHO PVC 4" | C112: 2032 | D112: LAS DOS BOCAS | E112: UN | F112: 7 | G112: =+H112/F112 -> 0 | H112: 0.00
A113: 10001851 | B113: TAPON PARA BATERIA EXIDE: EX2568 CB-4110 | C113: 2009 | D113: RIO BLANCO | E113: UN | F113: 56 | G113: =+H113/F113 -> 0 | H113: 0.00
A114: 10001866 | B114: COUPLING DE 1 1/2 GALVANIZADO | C114: 2001 | D114: C.CONTROL HIDRO | E114: UN | F114: 1 | G114: =+H114/F114 -> 0 | H114: 0.00
A115: 10001866 | B115: COUPLING DE 1 1/2 GALVANIZADO | C115: 2010 | D115: JIMENOA | E115: UN | F115: 18 | G115: =+H115/F115 -> 0 | H115: 0.00
A116: 10001871 | B116: ADAPTADOR ACERO INOX. 1" | C116: 2016 | D116: AGUACATE | E116: C/U | F116: 10 | G116: =+H116/F116 -> 0 | H116: 0.00
A117: 10001872 | B117: ADAPTADOR MACHO DE 3/4"" PVC | C117: 2007 | D117: RINCON | E117: C/U | F117: 25 | G117: =+H117/F117 -> 0.01 | H117: 0.25
A118: 10001872 | B118: ADAPTADOR MACHO DE 3/4"" PVC | C118: 2024 | D118: MAGUEYAL | E118: C/U | F118: 3 | G118: =+H118/F118 -> 0 | H118: 0.00
A119: 10001878 | B119: TAPON HEMBRA DE 2" PVC | C119: 2008 | D119: HATILLO | E119: C/U | F119: 3 | G119: =+H119/F119 -> 0.01 | H119: 0.03
A120: 10001878 | B120: TAPON HEMBRA DE 2" PVC | C120: 2027 | D120: PALOMINO | E120: C/U | F120: 1 | G120: =+H120/F120 -> 0 | H120: 0.00
A121: 10001900 | B121: TAPE DE GOMA 3M SCOTCH 3/4 PLG/30FT | C121: 2010 | D121: JIMENOA | E121: C/U | F121: 1 | G121: =+H121/F121 -> 0 | H121: 0.00
A122: 10001904 | B122: SENSOR DE TEMPERATURA REF. TN2531 | C122: 2007 | D122: RINCON | E122: C/U | F122: 2 | G122: =+H122/F122 -> 0 | H122: 0.00
A123: 10001904 | B123: SENSOR DE TEMPERATURA REF. TN2531 | C123: 2027 | D123: PALOMINO | E123: C/U | F123: 1 | G123: =+H123/F123 -> 0 | H123: 0.00
A124: 10001905 | B124: RELOJ COMPARADOR CON BASE | C124: 2004 | D124: BAIGUAQUE | E124: C/U | F124: 1 | G124: =+H124/F124 -> 0 | H124: 0.00
A125: 10001907 | B125: SENSOR DE PRESION HIDAC | C125: 2011 | D125: PINALITO | E125: C/U | F125: 1 | G125: =+H125/F125 -> 0 | H125: 0.00
A126: 10001908 | B126: PROTECTOR DE OIDO | C126: 2003 | D126: ANGOSTURA | E126: C/U | F126: 397 | G126: =+H126/F126 -> 0 | H126: 0.00
A127: 10001908 | B127: PROTECTOR DE OIDO | C127: 2013 | D127: ROSA JULIA-BOBA | E127: C/U | F127: 8 | G127: =+H127/F127 -> 0 | H127: 0.00
A128: 10001912 | B128: FILTRO DE AIRE HIDAC | C128: 2007 | D128: RINCON | E128: C/U | F128: 9 | G128: =+H128/F128 -> 0 | H128: 0.00
A129: 10001913 | B129: RELE FINDER CON BASE 7A 250V | C129: 2027 | D129: PALOMINO | E129: C/U | F129: 4 | G129: =+H129/F129 -> 0.01 | H129: 0.04
A130: 10001914 | B130: SENSOR DE NIVEL DE ACEITE HIDAC | C130: 2004 | D130: BAIGUAQUE | E130: C/U | F130: 1 | G130: =+H130/F130 -> 0 | H130: 0.00
A131: 10001914 | B131: SENSOR DE NIVEL DE ACEITE HIDAC | C131: 2028 | D131: BRAZO DERECHO | E131: C/U | F131: 1 | G131: =+H131/F131 -> 1 | H131: 1.00
A132: 10001919 | B132: LIMA PLANA 10" | C132: 2000 | D132: SUMINISTRO HIDRO | E132: C/U | F132: 15 | G132: =+H132/F132 -> 0.01 | H132: 0.15
A133: 10001919 | B133: LIMA PLANA 10" | C133: 2005 | D133: MONCION | E133: C/U | F133: 32 | G133: =+H133/F133 -> 0 | H133: 0.00
A134: 10001919 | B134: LIMA PLANA 10" | C134: 2010 | D134: JIMENOA | E134: C/U | F134: 7 | G134: =+H134/F134 -> 0.01 | H134: 0.07
A135: 10001922 | B135: ESCURRIDOR SIMPLE (SACA AGUA) | C135: 2010 | D135: JIMENOA | E135: C/U | F135: 1 | G135: =+H135/F135 -> 1 | H135: 1.00
A136: 10001923 | B136: GUANTE PARA OBRERO | C136: 2023 | D136: LOS TOROS | E136: C/U | F136: 24 | G136: =+H136/F136 -> 0 | H136: 0.00
A137: 10001933 | B137: RADIAL HINGE BEARING | C137: 2024 | D137: MAGUEYAL | E137: C/U | F137: 2 | G137: =+H137/F137 -> 0 | H137: 0.00
A138: 10001935 | B138: DISPLACEMENT TRANCDUCER BALLUFF | C138: 2021 | D138: SABANETA | E138: C/U | F138: 2 | G138: =+H138/F138 -> 0 | H138: 0.00
A139: 10001938 | B139: ORING 5.3 MM -40 | C139: 2007 | D139: RINCON | E139: C/U | F139: 20 | G139: =+H139/F139 -> 0 | H139: 0.00
A140: 10001946 | B140: DISCO DE CORTE 115 x 5 x 1.6 MM | C140: 2007 | D140: RINCON | E140: UN | F140: 1 | G140: =+H140/F140 -> 0 | H140: 0.00
A141: 10001947 | B141: HACHA 3.5 LBS | C141: 2000 | D141: SUMINISTRO HIDRO | E141: C/U | F141: 36 | G141: =+H141/F141 -> 0.01 | H141: 0.36
A142: 10001947 | B142: HACHA 3.5 LBS | C142: 2008 | D142: HATILLO | E142: C/U | F142: 5 | G142: =+H142/F142 -> 1 | H142: 5.00
A143: 10001947 | B143: HACHA 3.5 LBS | C143: 2010 | D143: JIMENOA | E143: C/U | F143: 7 | G143: =+H143/F143 -> 0 | H143: 0.00
A144: 10001947 | B144: HACHA 3.5 LBS | C144: 2011 | D144: PINALITO | E144: C/U | F144: 1 | G144: =+H144/F144 -> 0 | H144: 0.00
A145: 10001947 | B145: HACHA 3.5 LBS | C145: 2020 | D145: SABANA YEGUA | E145: C/U | F145: 1 | G145: =+H145/F145 -> 0 | H145: 0.00
A146: 10001947 | B146: HACHA 3.5 LBS | C146: 2021 | D146: SABANETA | E146: C/U | F146: 5 | G146: =+H146/F146 -> 0 | H146: 0.00
A147: 10001947 | B147: HACHA 3.5 LBS | C147: 2024 | D147: MAGUEYAL | E147: C/U | F147: 4 | G147: =+H147/F147 -> 0 | H147: 0.00
A148: 10001952 | B148: "ABRAZADERA UNITRUS 3""" | C148: 2010 | D148: JIMENOA | E148: C/U | F148: 30 | G148: =+H148/F148 -> 0 | H148: 0.00
A149: 10001953 | B149: "LETRA PARA TUBO EMT 2"" ""T"" | C149: 2010 | D149: JIMENOA | E149: C/U | F149: 10 | G149: =+H149/F149 -> 0 | H149: 0.00
A150: 10001953 | B150: "LETRA PARA TUBO EMT 2"" ""T"" | C150: 2024 | D150: MAGUEYAL | E150: C/U | F150: 1 | G150: =+H150/F150 -> 0 | H150: 0.00
A151: 10001954 | B151: BOTAS SEGURIDAD NO. 37 | C151: 2000 | D151: SUMINISTRO HIDRO | E151: C/U | F151: 2 | G151: =+H151/F151 -> 0.01 | H151: 0.02
A152: 10001955 | B152: CAPA PARA LLUVIA | C152: 2000 | D152: SUMINISTRO HIDRO | E152: C/U | F152: 28 | G152: =+H152/F152 -> 1067.9 | H152: 29,901.20
A153: 10001955 | B153: CAPA PARA LLUVIA | C153: 2023 | D153: LOS TOROS | E153: C/U | F153: 7 | G153: =+H153/F153 -> 0 | H153: 0.00
A154: 10001956 | B154: LONA PLASTICA 24*30 | C154: 2005 | D154: MONCION | E154: C/U | F154: 3 | G154: =+H154/F154 -> 0 | H154: 0.00
A155: 10001967 | B155: LAMPARA TIPO COBRA 240 Vac | C155: 2024 | D155: MAGUEYAL | E155: C/U | F155: 1 | G155: =+H155/F155 -> 0 | H155: 0.00
A156: 10001969 | B156: CAJA DE BREACKER TLM812FCU | C156: 2008 | D156: HATILLO | E156: C/U | F156: 1 | G156: =+H156/F156 -> 1 | H156: 1.00
A157: 10001979 | B157: PINTURA GRIS PERLA 56 | C157: 2003 | D157: ANGOSTURA | E157: C/U | F157: 24 | G157: =+H157/F157 -> 0 | H157: 0.00
A158: 10001979 | B158: PINTURA GRIS PERLA 56 | C158: 2004 | D158: BAIGUAQUE | E158: C/U | F158: 15 | G158: =+H158/F158 -> 0 | H158: 0.00
A159: 10001981 | B159: PINTURA AMARILLO TRAFICO | C159: 2015 | D159: JIGüEY | E159: C/U | F159: 4 | G159: =+H159/F159 -> 0 | H159: 0.00
A160: 10001993 | B160: ALABE DE TURBINA | C160: 2023 | D160: LOS TOROS | E160: C/U | F160: 16 | G160: =+H160/F160 -> 0 | H160: 0.00
A161: 10001993 | B161: ALABE DE TURBINA | C161: 2024 | D161: MAGUEYAL | E161: C/U | F161: 2 | G161: =+H161/F161 -> 0 | H161: 0.00
A162: 10001995 | B162: DIFERENCIAL DE 5 TONELADAS | C162: 2009 | D162: RIO BLANCO | E162: C/U | F162: 1 | G162: =+H162/F162 -> 0 | H162: 0.00
A163: 10002002 | B163: ENGRASADORA MANUAL | C163: 2010 | D163: JIMENOA | E163: C/U | F163: 1 | G163: =+H163/F163 -> 0 | H163: 0.00
A164: 10002002 | B164: ENGRASADORA MANUAL | C164: 2013 | D164: ROSA JULIA-BOBA | E164: C/U | F164: 1 | G164: =+H164/F164 -> 0 | H164: 0.00
A165: 10002004 | B165: CEPILLO DE ALAMBRE ACERO 3x17 | C165: 2013 | D165: ROSA JULIA-BOBA | E165: C/U | F165: 1 | G165: =+H165/F165 -> 0 | H165: 0.00
A166: 10002004 | B166: CEPILLO DE ALAMBRE ACERO 3x17 | C166: 2015 | D166: JIGüEY | E166: C/U | F166: 4 | G166: =+H166/F166 -> 0 | H166: 0.00
A167: 10002004 | B167: CEPILLO DE ALAMBRE ACERO 3x17 | C167: 2021 | D167: SABANETA | E167: C/U | F167: 26 | G167: =+H167/F167 -> 0.01 | H167: 0.26
A168: 10002004 | B168: CEPILLO DE ALAMBRE ACERO 3x17 | C168: 2024 | D168: MAGUEYAL | E168: C/U | F168: 6 | G168: =+H168/F168 -> 0 | H168: 0.00
A169: 10002004 | B169: CEPILLO DE ALAMBRE ACERO 3x17 | C169: 2025 | D169: LAS DAMAS | E169: C/U | F169: 1 | G169: =+H169/F169 -> 1 | H169: 1.00
A170: 10002012 | B170: MARTILLO PARA CARPINTERO TRUPER | C170: 2007 | D170: RINCON | E170: C/U | F170: 2 | G170: =+H170/F170 -> 0 | H170: 0.00
A171: 10002012 | B171: MARTILLO PARA CARPINTERO TRUPER | C171: 2027 | D171: PALOMINO | E171: C/U | F171: 5 | G171: =+H171/F171 -> 611.24 | H171: 3,056.20
A172: 10002014 | B172: DISCO DE CORTE 180*1.6*22.23MM | C172: 2025 | D172: LAS DAMAS | E172: C/U | F172: 1 | G172: =+H172/F172 -> 0 | H172: 0.00
A173: 10002022 | B173: LLAVE DE CHORRO DE 3/4PULG. | C173: 2008 | D173: HATILLO | E173: C/U | F173: 1 | G173: =+H173/F173 -> 0 | H173: 0.00
A174: 10002032 | B174: PINTURA OXIDO NEGRO | C174: 2010 | D174: JIMENOA | E174: C/U | F174: 10 | G174: =+H174/F174 -> 0 | H174: 0.00
A175: 10002039 | B175: THINER | C175: 2021 | D175: SABANETA | E175: C/U | F175: 7 | G175: =+H175/F175 -> 0.01 | H175: 0.07
A176: 10002041 | B176: PISTOLA PARA PINTAR | C176: 2007 | D176: RINCON | E176: C/U | F176: 1 | G176: =+H176/F176 -> 0 | H176: 0.00
A177: 10002044 | B177: CALIBRADOR ACHCROTF | C177: 2011 | D177: PINALITO | E177: C/U | F177: 1 | G177: =+H177/F177 -> 0.01 | H177: 0.01
A178: 10002047 | B178: GOMA DE MOTOR 110/90/19 | C178: 2007 | D178: RINCON | E178: C/U | F178: 1 | G178: =+H178/F178 -> 0 | H178: 0.00
A179: 10002049 | B179: GUANTE ALTA TENSION | C179: 2021 | D179: SABANETA | E179: C/U | F179: 2 | G179: =+H179/F179 -> 0.01 | H179: 0.02
A180: 10002068 | B180: ZAFACONES DE BAÑO | C180: 2021 | D180: SABANETA | E180: C/U | F180: 2 | G180: =+H180/F180 -> 0.01 | H180: 0.02
A181: 10002068 | B181: ZAFACONES DE BAÑO | C181: 2024 | D181: MAGUEYAL | E181: C/U | F181: 3 | G181: =+H181/F181 -> 0 | H181: 0.00
A182: 10002087 | B182: BOTIQUIN PARA MEDICAMENTOS | C182: 2000 | D182: SUMINISTRO HIDRO | E182: C/U | F182: 3 | G182: =+H182/F182 -> 1770 | H182: 5,310.00
A183: 10002087 | B183: BOTIQUIN PARA MEDICAMENTOS | C183: 2003 | D183: ANGOSTURA | E183: C/U | F183: 3 | G183: =+H183/F183 -> 1770 | H183: 5,310.00
A184: 10002105 | B184: TUBO PVC SEMI PRESION 3" | C184: 2015 | D184: JIGüEY | E184: C/U | F184: 1 | G184: =+H184/F184 -> 0.01 | H184: 0.01
A185: 10002105 | B185: TUBO PVC SEMI PRESION 3" | C185: 2022 | D185: DOMINGO RODRIGUEZ | E185: C/U | F185: 8 | G185: =+H185/F185 -> 0.01 | H185: 0.08
A186: 10002106 | B186: TUBO PVC 2" | C186: 2004 | D186: BAIGUAQUE | E186: C/U | F186: 34 | G186: =+H186/F186 -> 0.01 | H186: 0.34
A187: 10002109 | B187: TUBO FLORECENTE DE 10 WATTS. | C187: 2002 | D187: TAVERA | E187: UN | F187: 4 | G187: =+H187/F187 -> 0 | H187: 0.00
A188: 10002121 | B188: AISLADOR BUSHING 69KV/400AMP | C188: 2027 | D188: PALOMINO | E188: UN | F188: 1 | G188: =+H188/F188 -> 1 | H188: 1.00
A189: 10002143 | B189: MANGUERA DE PRESION DE AIRE DIN 8541CF | C189: 2025 | D189: LAS DAMAS | E189: UN | F189: 1 | G189: =+H189/F189 -> 508 | H189: 508.00
A190: 10002154 | B190: AISLADOR ANILLO COLECTOR R P/GENERA | C190: 2005 | D190: MONCION | E190: UN | F190: 2 | G190: =+H190/F190 -> 0 | H190: 0.00
A191: 10002178 | B191: SILICON GRIS | C191: 2031 | D191: REPUESTOS VEHICULOS | E191: UN | F191: 7 | G191: =+H191/F191 -> 362.2842857 | H191: 2,535.99
A192: 10002179 | B192: SENSOR COMINGS C450-0007 | C192: 2011 | D192: PINALITO | E192: UN | F192: 1 | G192: =+H192/F192 -> 0 | H192: 0.00
A193: 10002197 | B193: CONECTOR RECTO LIQUID TIGHT 1/2'' AZUL | C193: 2002 | D193: TAVERA | E193: UN | F193: 4 | G193: =+H193/F193 -> 0.01 | H193: 0.04
A194: 10002200 | B194: ELECTRODO PARA SOLDAR 1/8 X 14'' LB | C194: 2002 | D194: TAVERA | E194: UN | F194: 130 | G194: =+H194/F194 -> 0 | H194: 0.00
A195: 10002200 | B195: ELECTRODO PARA SOLDAR 1/8 X 14'' LB | C195: 2008 | D195: HATILLO | E195: UN | F195: 10 | G195: =+H195/F195 -> 0.01 | H195: 0.10
A196: 10002200 | B196: ELECTRODO PARA SOLDAR 1/8 X 14'' LB | C196: 2022 | D196: DOMINGO RODRIGUEZ | E196: UN | F196: 170 | G196: =+H196/F196 -> 0.01 | H196: 1.70
A197: 10002233 | B197: TUBO CONDUIT DE 3/4 | C197: 2002 | D197: TAVERA | E197: UN | F197: 1 | G197: =+H197/F197 -> 0 | H197: 0.00
A198: 10002233 | B198: TUBO CONDUIT DE 3/4 | C198: 2008 | D198: HATILLO | E198: UN | F198: 1 | G198: =+H198/F198 -> 0 | H198: 0.00
A199: 10002234 | B199: TUBO CONDUIT DE 1/2 | C199: 2002 | D199: TAVERA | E199: UN | F199: 2 | G199: =+H199/F199 -> 0 | H199: 0.00
A200: 10002246 | B200: ARANDELA DE FIBRA DE 4 3/4 X 2 11/16 | C200: 2025 | D200: LAS DAMAS | E200: UN | F200: 8 | G200: =+H200/F200 -> 43.15 | H200: 345.20
A201: 10002262 | B201: VENTILADOR DEL EXITADOR PRINCIP 230V50HZ | C201: 2020 | D201: SABANA YEGUA | E201: UN | F201: 1 | G201: =+H201/F201 -> 1 | H201: 1.00
A202: 10002263 | B202: SWITCH DE PRESION REF.GAW65B | C202: 2025 | D202: LAS DAMAS | E202: UN | F202: 3 | G202: =+H202/F202 -> 2400 | H202: 7,200.00
A203: 10002264 | B203: BOMBA FUMIGADORA MANUAL | C203: 2007 | D203: RINCON | E203: UN | F203: 1 | G203: =+H203/F203 -> 0 | H203: 0.00
... 4297 more rows
